{"text_format":"3","workbook":"xlsx","n_sheets":3,"sheets":["general","SW-R","SW-L"],"not_rendered":{"images":14,"defined_names":1},"read":"whole","date_system":"1900"}

{"sheet":"general","index":0,"n_rows":122,"n_cols":42,"rows_kept":122,"merged":[[1,16,2,27],[3,23,3,27],[6,10,6,12],[6,17,6,18],[8,10,8,12],[11,3,11,5],[12,18,14,18],[14,19,16,19],[15,1,19,1],[15,2,17,2],[17,7,18,8],[17,19,19,19],[19,2,20,2],[20,9,20,13],[20,19,21,19],[21,1,24,1],[21,2,26,2],[26,7,28,7],[30,5,30,6],[30,16,31,16],[31,24,32,26],[38,1,39,1],[41,4,41,5],[47,23,48,27],[49,17,50,27],[52,17,53,27],[54,17,55,27],[58,12,58,15],[59,6,59,11],[60,12,60,15],[60,17,60,18],[60,19,60,20],[60,21,60,22],[60,23,60,24],[61,17,61,18],[61,19,61,20],[61,21,61,22],[61,23,61,24],[62,12,62,15],[62,17,63,20],[62,21,63,27],[64,14,64,15],[64,21,66,27],[67,21,68,24],[67,26,67,27],[68,26,68,27]]}
[{"$nulls":29},"č.jaz.",{"$f":"VLOOKUP(E5,AD3:AE11,2,FALSE)","v":8},null,"SVYHLEDAT","CZ","EN","DE","PL","FR","NL","EST","FIN","RU"]
[{"$nulls":16},{"$f":"VLOOKUP(AG13,AG2:AR96,$AE$1+1,FALSE)","v":"MATALANOSTO (LL-CE)"},{"$nulls":12},"Jazyk","číslo",null,{"$f":"VLOOKUP(AH2,AH2:AR96,$AE$1,FALSE)","v":"Valitse kieli:"},"Zvolit jazyk: ","Select a language:","Wählen Sie eine Sprache","Wybierz język","Sélectionner une langue","Kies een taal:","Valige keel","Valitse kieli:","Выберите язык:"]
[null,"Zvol jazyk:",{"$nulls":5},{"$f":"VLOOKUP(AG3,AG2:AR96,$AE$1+1,FALSE)","v":"Oviaukon leveys"},{"$nulls":3},"mm",{"$nulls":17},"CZ",1,null,{"$f":"VLOOKUP(AH3,AH3:AR96,$AE$1,FALSE)","v":"Oviaukon leveys"},"Šířka otvoru","Opening width","Lichte Breite","Szerokość otworu","LARGEUR DE BAIE","Dagmaat breedte","Ava laius","Oviaukon leveys","Ширина проема"]
[null,"Select a language:",{"$nulls":21},"W max 6000 mm; H max 5000 mm; max. 23 m2",{"$nulls":5},"EN",2,null,{"$f":"VLOOKUP(AH4,AH4:AR97,$AE$1,FALSE)","v":"Oviaukon korkeus"},"Výška otvoru","Opening height","Lichte Höhe","Wysokość otworu","HAUTEUR DE BAIE","Dagmaat hoogte","Ava kõrgus","Oviaukon korkeus","Высота проема"]
[null,"Wählen Sie eine Sprache:",null,null,"FIN",null,null,{"$f":"VLOOKUP(AG4,AG2:AR96,$AE$1+1,FALSE)","v":"Oviaukon korkeus"},{"$nulls":3},"mm",null,null,{"$f":"VLOOKUP(AH99,AH99:AR175,$AE$1,FALSE)","v":"\nTäytä kentät, jotka on merkitty värillä!"},{"$nulls":14},"DE",3,null,{"$f":"VLOOKUP(AH5,AH5:AR96,$AE$1,FALSE)","v":"SISÄLTÄPÄIN KUVATTUNA"},"POHLED ZEVNITŘ","INTERIOR VIEW","INNENANSICHT","Widok od środka","VUE INTERIEURE","BINNENAANZICHT","seestvaade","SISÄLTÄPÄIN KUVATTUNA","Вид изнутри"]
[null,"Wybierz język:",{"$nulls":27},"PL",4,null,{"$f":"VLOOKUP(AH6,AH6:AR100,$AE$1,FALSE)","v":"LEIKKAUS A-A"},"ŘEZ A-A","SECTION A-A","DURCHSCHNITT A-A","Przekrój A-A","COUPE A-A","DOORSNEDE A-A","vaade A-A","LEIKKAUS A-A","Разрез А-А"]
[null,"Sélectionner une langue:",{"$nulls":5},{"$f":"VLOOKUP(AG101,AG8:AR101,$AE$1+1,FALSE)","v":"Ohjattu"},{"$nulls":6},{"$f":"IF(OR(K7=AG102,K7=\"\"),\"\",VLOOKUP(AG106,AG8:AR106,$AE$1+1,FALSE))","v":""},{"$nulls":14},"FR",5,null,{"$f":"VLOOKUP(AH7,AH7:AR100,$AE$1,FALSE)","v":"LEIKKAUS B-B"},"ŘEZ B-B","SECTION B-B","DURCHSCHNITT B-B","Przekrój B-B","COUPE B-B","DOORSNEDE B-B","VAADE B-B","LEIKKAUS B-B","Разрез B-B"]
[null,"Kies een taal:",{"$nulls":27},"NL",6,null,{"$f":"VLOOKUP(AH8,AH8:AR101,$AE$1,FALSE)","v":"HUOMAUTUS:"},"POZNÁMKA:","NOTE:","ACHTUNG:","Uwaga:","Remarque:","OPMERKING:","MÄRKUS","HUOMAUTUS:","ПРИМЕЧАНИЯ:"]
[null,"Valige keel",{"$nulls":5},{"$f":"AG119","v":"lamellin tyypi"},{"$nulls":8},{"$f":"VLOOKUP($AG$6,$AG$2:$AR$96,$AE$1+1,FALSE)","v":"LEIKKAUS A-A"},{"$nulls":12},"EST",7]
[null,"Valitse kieli:",{"$nulls":11},"D=",{"$f":"L59","v":""},{"$nulls":14},"FIN",8]
[null,"Выберите язык:",{"$nulls":12},{"$f":"\"S= \"&P64","v":"S= "},{"$nulls":14},"RU",9]
[{"$nulls":3},{"$f":"VLOOKUP(AG5,AG2:AR96,$AE$1+1,FALSE)","v":"SISÄLTÄPÄIN KUVATTUNA"},{"$nulls":10},{"$f":"\"X= \"&K5","v":"X= "}]
[{"$nulls":15},"Y=",{"$f":"IF(O10<3000,0,IF(AND(O10>=3000,O10<4500),K5/2,IF(O10>=4500,((K5/3)*2),0)))","v":0},{"$nulls":15},{"$f":"VLOOKUP(AH13,AH13:AR105,$AE$1,FALSE)","v":"MATALANOSTO (LL-CE)"},"VEDENÍ PRO NÍZKÝ PŘEKLAD (LL-CE)","LOW LIFT SYSTEM CABLES INSIDE  (LL-CE)","NIEDRIGSTURZ BESCHLAG (LL-CE)","PROWADZENIE DLA NIESKIEGO NADPROŻA (LL-CE)","LEVEE REDUITE (LL-CE)","LAAG PLAFONDSYSTEEM KABELS BINNENDOOR (LL-CE)","Madaltõste (LL-CE)","MATALANOSTO (LL-CE)","НИЗКИЙ ПОДЪЕМ (LL-CE)"]
[{"$nulls":17},{"$f":"IF(O10>=4500,K5/3,0)","v":0},{"$nulls":14},{"$f":"VLOOKUP(AH14,AH14:AR106,$AE$1,FALSE)","v":"jouset ovipalkkin päällä"},"PRUŽINY NAD PŘEKLADEM","springs above lintel","Federn oberhalb des Sturzes","SPRĘŻYNY NAD NADPROŻEM","RESSORTS AVANTS DEPORTES DU LINTEAU","verenpakket boven latei","Vedrud ava kohal","jouset ovipalkkin päällä","нижнее расположение вала"]
[{"$nulls":19},{"$f":"\"F= \"&$P$58","v":"F= 230"},{"$nulls":12},{"$f":"VLOOKUP(AH15,AH15:AR107,$AE$1,FALSE)","v":"pro HL>600 ja HL<=1200"},"pro HL>600 a HL<=1200","for HL>600 and HL<=1200","pro HL>600 und HL<=1200","pro HL>600 i HL<=1200","pro HL>600 et HL<=1200","van HL>600 tot HL<=1200","HL>600 ja HL<=1200","pro HL>600 ja HL<=1200","при высоте подъема > 600 и <= 1200"]
[null,{"$f":"\"F= \"&IF(K3=\"\",\"\",P58)","v":"F= "},{"$nulls":30},{"$f":"VLOOKUP(AH16,AH16:AR108,$AE$1,FALSE)","v":"Lamelli 40mm"},"PANEL 40mm","SECTION THICKNESS 40 mm","Paneel 40 mm","Panel 40 mm","40 mm PANNEAU","PANEEL 40 mm","Paneel 40 mm","Lamelli 40mm","ТОЛЩИНА СЕКЦИИ 40мм "]
[{"$nulls":32},{"$f":"VLOOKUP(AH17,AH17:AR109,$AE$1,FALSE)","v":"Max. W x H 5000x5000, max. 24 m2 (300 kg)"},"Max. W x H 5000x5000, max. 24 m2 (300 kg)","Max. W x H 5000x5000, max. 24 m2 (300 kg)","Max. W x H 5000x5000, max. 24 m2 (300 kg)","Max. W x H 5000x5000, max. 24 m2 (300 kg)","Max. W x H 5000x5000, max. 24 m2 (300 kg)","Max. W x H 4000x4000","Max. W x H 5000x5000, max. 24 m2 (300 kg)","Max. W x H 5000x5000, max. 24 m2 (300 kg)","макс. ШхВ (WxH) 5000x5000, max. 24 m2 (300 kg)"]
[]
[]
["*"]
[{"$nulls":9},{"$f":"AG118","v":"Galvanoitu holkki 80x40x2 sisältyy. Holkki on kiinnitetty kattoon vähintään 3sta pistestä (2 pistettä ovella alle 10 m2)."},{"$nulls":9},{"$f":"\"H= \"&K5","v":"H= "},{"$nulls":12},{"$f":"VLOOKUP(AH21,AH21:AR113,$AE$1,FALSE)","v":"asennus tiiliseinän"},"Montáž na cihlové zdivo","mounting on brickwork","Montage auf Mauerwerk und Ziegel","montaż do muru i cegły","montage sur béton","montage op beton","Paigaldus kiviseinale","asennus tiiliseinän","монтаж на бетон"]
[null,{"$f":"\"H= \"&K5","v":"H= "},{"$nulls":6},{"$f":"AG110","v":"tarvittava sivutila"},{"$nulls":15},{"$f":"VLOOKUP(AG21,AG2:AR96,$AE$1+1,FALSE)","v":"asennus tiiliseinän"},{"$nulls":7},{"$f":"VLOOKUP(AH22,AH22:AR114,$AE$1,FALSE)","v":"asennus betoniin"},"Montáž na porobeton","mounting on cellular concrete","Montage auf Porenbeton oder Gasbeton","montaż do betonu porowatego","montage sur parpaing creux","montage op gasbeton","Paigaldus poorbetoonile","asennus betoniin","монтаж на газобетон"]
[{"$nulls":8},{"$f":"VLOOKUP(AG49,AG2:AR96,$AE$1+1,FALSE)","v":"tarvittava tila mootori- tai ketjunostolle (L tai R)"},{"$nulls":23},{"$f":"VLOOKUP(AH23,AH23:AR115,$AE$1,FALSE)","v":"asennus eristettyyn seinäelementtiin"},"Montáž na opláštění","mounting on insulated cladding","Montage auf ISO-Trapezblechfassade","montaż do płaszcza","montage sur structure métallique  (a fournir par le charpentier)","montage op binnendooscontructie met damwandbeplating","Paigaldus soojustatud seinapaneelile","asennus eristettyyn seinäelementtiin","монтаж на металлокаркас"]
[]
[{"$nulls":8},{"$f":"VLOOKUP(AG50,AG2:AR96,$AE$1+1,FALSE)","v":"kiinnityspinta ohjauspaneelia varten ,mitat 250 x 400 mm"}]
[{"$nulls":8},{"$f":"VLOOKUP(AG51,AG2:AR96,$AE$1+1,FALSE)","v":"keskiviiva ca 1,400 -1,500 mm: n korkeudella lattiasta"},{"$nulls":23},{"$f":"VLOOKUP(AH26,AH26:AR118,$AE$1,FALSE)","v":"ASIAKKAAN TEHTÄVÄT TYÖT, ELLEI ETUKÄTEEN KIRJALLISESTI MUUTOIN SOVITTU "},"PRÁCE, KTERÉ MUSÍ BÝT PROVEDENY ZÁKAZNÍKEM PŘED MONTÁŽÍ, POKUD NEBYLO DOHODNUTO JINAK","WORK TO BE CARRIED OUT BY CUSTOMER, UNLESS IN ADVANCE OTHERWISE IS AGREED IN WRITING.","VORBEREITUNGEN UND ARBEITEN DIE VOM AUFTRAGGEBER ZU ERBRINGEN SIND, AUßER BEI SCHRIFTLICHER VEREINBARUNG IM VORAUS:","PRACE, KTÓRE MUSZĄ ZOSTAĆ WYKONANE PRZEZ KLIENTA PRZED WYKONANIEM MONTAŻU, O ILE NIE UZGODNIONO INACZEJ.","APPROVISIONNEMENT & TRAVAUX INCOMBANT AU MAITRE D'OUVRAGE  (sauf accord contraire)","VOORZIENINGEN EN WERKZAAMHEDEN DOOR OPDRACHTGEVER TE VERZORGEN, TENZIJ VOORAF SCHRIFTELIJK ANDERS IS OVEREENGEKOMEN ","Kliendi poolt tehtavad ettevalmistustööd v.a juhul kui pole kirjalikult teistmoodi kokku lepitud","ASIAKKAAN TEHTÄVÄT TYÖT, ELLEI ETUKÄTEEN KIRJALLISESTI MUUTOIN SOVITTU ","МАТЕРИАЛЫ И ПРОВЕДЕНИЕ РАБОТ ОБЕСПЕЧИВАЮТСЯ КЛИЕНТОМ,ЕСЛИ ИНОЕ НЕ ОГОВОРЕНО ЗАРАНЕЕ В ПИСЬМЕННОЙ ФОРМЕ"]
[{"$nulls":24},{"$f":"VLOOKUP(AG22,AG2:AR96,$AE$1+1,FALSE)","v":"asennus betoniin"},{"$nulls":7},"\nRakenteellinen:","Konstrukční:","Constructional :","Bauseits:","Konstrukcyjne:","Structure: ","Bouwkundig:","Ehituslikud:","\nRakenteellinen:","Конструктивно:"]
[{"$nulls":8},{"$f":"VLOOKUP(AG52,AG3:AR97,$AE$1+1,FALSE)","v":"Pistorasiasta CEE 16A, 5P, 400V, suojattu 6 A (10 A) katkaisijalla, vikavirtasuoja I = 30 mA."},{"$nulls":23},"Toimittaa ja asentaa asennuskehyksen ja asennuspinnat kiskoille ja jousipaketille tapauksessa jossa kevytbetooni tai sandwich-paneeli jne.","Příprava montážních ploch pro vedení vrat a pro pružiny.","Supply and fix mounting frame and mounting surfaces for the rails and the spring packet in case of aerated concrete or sandwichpanels etc.","Ein stählerner Montagerahmen zur Befestigung der vertikalen Laufschienen und des Federpakets bei nicht tragfähigen Flächen wie z.B. Porenbeton, Gasbeton, Isolationspanelen u.s.w..","Przygotowanie powierzchni montażowych dla prowadzenia bramy oraz dla sprężyn.","Préparation de la structure de montage des rails de guidage et des ressorts pour une pose sur panneaux isolants","Een stalen montageframe voor de bevestiging van de verticale looprails en het verenpakket bij niet dragende montagevlakken, zoals gasbeton, isolatiepanelen, sandwichpanelen enz.","Avaettevalmistusraami tarnimine ja paigaldus siinide ja vedrude kinnituseks","Toimittaa ja asentaa asennuskehyksen ja asennuspinnat kiskoille ja jousipaketille tapauksessa jossa kevytbetooni tai sandwich-paneeli jne.","Стальная монтажная рама для установки вертикальных направляющих и пружин в случае не несущих монтажных поверхностей, таких как: газобетон, изоляционные панели, сэндвич-панели и т.д."]
[{"$nulls":32},"Asennus mahdollisuudet vaakakiskoille enintään 1 metrin korkeudella kiskoista pitää olla mahdollista.","Montáž vodorovného vedení může být max. 1 metr od pevné konstrukce.","Mounting possibilities for the horizontal rails up to 1 meter above the rails must be provided.","Befestigungsmöglichkeit für die Zwischen- und Endaufhängung der horizontalen Laufschienen bis zu max. 1 m über diesen Laufschienen.","Montaż prowadzenia poziomego można wykonać w oddaleniu maks. 1 metra od konstrukcji stałej.","Lorsque les possibilités de montage des rails horizontaux dépassent ","Bevestigingsmogelijkheid voor de tussen- en eindophanging van de horizontale looprails tot max. 1m boven deze looprails.","Paigaldusruum ülalpool siini max. 1m","Asennus mahdollisuudet vaakakiskoille enintään 1 metrin korkeudella kiskoista pitää olla mahdollista.","Способы крепления для горизонтальных направляющих максимум до 1м над данными направляющими."]
[{"$nulls":32},"Tarvittava kiinnityspinta ja vapaa tilaa kuvan mukaisesti.","Nezbytné montážní plochy a volný prostor dle nákresu.","Necessary mounting surface and free room as shown.","Benötigte Montageflächen und Freiräume gemäß Zeichnung.","Niezbędne powierzchnie montażowe oraz wolna przestrzeń wg rysunku.","Adapter la structure et l' espace disponible selon nos plans de réservations ci-contre","Benodigde montagevlakken en vrije ruimtes, volgens tekening.","Piisav paigaldusruum vastavalt lisatud joonisele","Tarvittava kiinnityspinta ja vapaa tilaa kuvan mukaisesti.","Необходимые монтажные поверхности и свободное пространство в соответствии с чертежом"]
[null,{"$f":"IF($K$7=$AG$102,150,IF(AND($K$7=$AG$103,$R$7=$AG$107),400,IF(AND($K$7=$AG$104,R7=$AG$107),400,IF(AND($K$7=$AG$103,$R$7=$AG$108),150,IF(AND($K$7=$AG$104,R7=$AG$108),150,180)))))","v":180},null,null,"W=",{"$f":"K3","v":0},null,null,{"$f":"IF(K7=AG102,150,IF(AND(K7=AG103,R7=AG108),400,IF(AND(K7=AG104,R7=AG108),400,IF(AND(K7=AG103,R7=AG107),180,IF(AND(K7=AG104,R7=AG107),180,150)))))","v":150},{"$nulls":7},{"$f":"IF($K$9=$AG$122,290,250)","v":250},{"$nulls":15},"Sähkönsyöttö tarvittu:","Elekrická příprava (pro elektricky ovládaná sekční vrata): ","Electrical supply required to be :","Elektrisch (bei elektrisch bedienten Toren):","Przygotowanie elektryczne (dla elektrycznie sterowanej bramy segmentowej) :","Alimentation electrique  (pour porte motorisée) :","Elektrisch: (bij elektrisch bediende deuren)","Elektriliselt avatavate uste jaoks","Sähkönsyöttö tarvittu:","Электрика (для ворот с электрическим управлением):"]
[{"$nulls":24},{"$f":"VLOOKUP(AG23,AG2:AR96,$AE$1+1,FALSE)","v":"asennus eristettyyn seinäelementtiin"},{"$nulls":7},"400V / 230V 3 vaihe+neutraali ja maadoitus tarjotuna Euro pistorasiasta.","Zásuvka CEE 16 A, 5P, 400 V = zásuvka s nulovým a zemnícím vodičem","400V/230V 3 phase neutral and earth terminating, provided by euro plug socket.","Stromzufuhr 400V/230V mittels Eurosteckdose, 3 Phasen+0+PE max.1 meter vom Schaltkasten.","Gniazdo CEE 16 A, 5P, 400 V = gniazdo z przewodnikiem zerowym i uziemiającym","400V triphase T+N avec prise de raccordement CEE 16 A","Voeding  400V/230V door middel van eurostopcontact, 3 fase+0+PE max. ","Toite vedu ajamini - 400V/230V, 3 faasi","400V / 230V 3 vaihe+neutraali ja maadoitus tarjotuna Euro pistorasiasta.","Питание 400V/230V посредством заземленной евророзетки, 3 фазы+0+РЕ "]
[{"$nulls":32},"Tarjoa sopivan kiinnityspinnan  ohjauspaneelia varten ,mitat 250 x 400 mm","Zajistit vhodnou montážní plochu pro řídící jednotku motoru 250 x 400 mm","Provide suitable mounting surface for control panel, dimensions 250 x 400 mm","Montagefläche für Schaltkasten, Abmessungen 250 x 400 mm","Zapewnić odpowiednią powierzchnię montażową dla jednostki sterującej silnika 250x400","Assurer une surface de montage adéquate pour le coffret de commande du moteur L.250 x H.400 mm","Montagevlak t.b.v. schakelkast, afmetingen 250 x 400 mm","Kontrolleri jaoks piisava paigaldusruumi tagamine 250x400 mm","Tarjoa sopivan kiinnityspinnan  ohjauspaneelia varten ,mitat 250 x 400 mm","5необходимо обеспечить монтажную поверхность для панели управления, размеры 200х400 мм"]
[]
[]
[{"$nulls":32},{"$f":"VLOOKUP(AH36,AH36:AR128,$AE$1,FALSE)","v":"TARVITTAVA KIINNITYSPINTA"},"NEZBYTNÁ MONTÁŽNÍ PLOCHA","NECESSARY MOUNTING SURFACE","BENÖTIGTER MONTAGEFLÄCHEN","NIEZBĘDNA POWIERZCHNIA MONTAŻOWA","SURFACE NECESSAIRE DE MONTAGE","BENODIGDE MONTAGEVLAKKEN","Vajalik paigaldusruum","TARVITTAVA KIINNITYSPINTA","необходимая монтажная поверхность"]
[{"$nulls":4},{"$f":"VLOOKUP(AG7,AG2:AR96,$AE$1+1,FALSE)","v":"LEIKKAUS B-B"},{"$nulls":27},{"$f":"VLOOKUP(AH37,AH37:AR129,$AE$1,FALSE)","v":"LISÄ ASENNUSTILA "},"DODATEČNÉ MONTÁŽNÍ PLOCHY PRO KONZOLY","EXTRA PLANES AT WEAK SURFACES","MONTAGEFLÄCHE FÜR DEN MOTOR","Dodatkowych obszarach montażu konsoli","FACILITÉ DE MONTAGE ADDITIONNEL POUR CONSOLE","EXTRA VLAKKEN BIJ ZWAKKE ONDERGROND","Lisaplaadid nõrgale pinnale","LISÄ ASENNUSTILA ","металлокаркас из стальной профильной трубы"]
[{"$nulls":11},{"$f":"VLOOKUP(AG42,AG2:AR96,$AE$1+1,FALSE)","v":"kaltevuus"},{"$nulls":20},{"$f":"VLOOKUP(AH38,AH38:AR130,$AE$1,FALSE)","v":"TARVITTAVA VAPAA TILA"},"NEZBYTNÝ VOLNÝ PROSTOR","NECESSARY FREE ROOM","BENÖTIGTER FREIRAUM","niezbędne miejsce","ESPACE LIBRE NECESSAIRE","BENODIGDE VRIJE RUIMTE","Vajalik vaba ruum ","TARVITTAVA VAPAA TILA","необходимое свободное пространство"]
[null,{"$f":"IF($K$9=$AG$122,290,250)","v":250},{"$nulls":30},{"$f":"VLOOKUP(AH39,AH39:AR131,$AE$1,FALSE)","v":"LISÄTILA MOOTORIA/KETJUA VARTEN"},"VOLNÝ PROSTOR PRO MOTOR/ŘETĚZ.PŘEVOD","EXTRA FREE ROOM FOR MOTOR/CHAIN","EXTRA FREIRAUM FÜR MOTOR/KETTE","Wolnego miejsca na silnik, napęd łańcuchowy","ESPACE LIBRE POUR MOTEUR / CHAINE DE LEVAGE.","EXTRA VRIJE RUIMTE BIJ MOTOR/KETTING","Lisa vaba ruum mootorile/ketile","LISÄTILA MOOTORIA/KETJUA VARTEN","дополнительное свободное пространство для двигателя/подъемной цепи"]
[]
[]
[{"$nulls":4},{"$f":"B31+I31+F31","v":330},{"$nulls":27},{"$f":"VLOOKUP(AH42,AH42:AR134,$AE$1,FALSE)","v":"kaltevuus"},"sklon podlahy","fall of the floor","Bodenneigung","nachylenie podłogi","réservations seuil béton","vloer met waterkering","pinna langus","kaltevuus","пол с водоотводом"]
[{"$nulls":32},{"$f":"VLOOKUP(AH43,AH43:AR135,$AE$1,FALSE)","v":"ulkopuoli"},"směrem ven","outside","nach aussen","w kierunku na zewnątrz",{"$f":"\"\"","v":""},"buitenzijde","väljaspool","ulkopuoli"]
[{"$nulls":32},{"$f":"VLOOKUP(AH44,AH44:AR136,$AE$1,FALSE)","v":"kaltevuus 3%"},"sklon 3%","fall 3%","Gefälle 3%","nachylenie 3%","PENTE 3%","afschot 3%","langus 3%","kaltevuus 3%","наклон 3%"]
[{"$nulls":32},{"$f":"VLOOKUP(AH45,AH45:AR137,$AE$1,FALSE)","v":"sisäinen taso"},"směrem ven","internal level","Wasserschenkel","w kierunku na zewnątrz","réservations seuil béton","niveau binnen","Sisemine tasand","sisäinen taso"]
[{"$nulls":17},{"$f":"VLOOKUP(AG36,AG2:AR96,$AE$1+1,FALSE)","v":"TARVITTAVA KIINNITYSPINTA"},{"$nulls":5},{"$f":"VLOOKUP(AG38,AG4:AR97,$AE$1+1,FALSE)","v":"TARVITTAVA VAPAA TILA"},{"$nulls":8},{"$f":"VLOOKUP(AH46,AH46:AR138,$AE$1,FALSE)","v":"lattia nostetulla"},"sklon podlahy","floor with raised","Boden mit","nachylenie podłogi",{"$f":"\"\"","v":""},"vloer met  ","põrand koos tõstetud sisetasandiga","lattia nostetulla","пол с наклоном 3%"]
[]
[{"$nulls":17},{"$f":"VLOOKUP(AG37,AG4:AR97,$AE$1+1,FALSE)","v":"LISÄ ASENNUSTILA "}]
[{"$nulls":32},{"$f":"VLOOKUP(AH49,AH49:AR141,$AE$1,FALSE)","v":"tarvittava tila mootori- tai ketjunostolle (L tai R)"},"nezbytný boční prostor pro motor nebo řetězový pohon ( L nebo R )","necessary side room for electrical- or hauling chain operation (L or R)","Benötigter Freiraum bei Elektro- oder Haspelkettenbedienung (wahlweise L oder R)","niezbędna przestrzeń boczna dla silnika lub napędu łańcuchowego ( L lub R )","écoinçon minimum requis pour le moteur ou treuil a chaîne (L ou R)","benodigde vrije ruimte voor elektrische- of ketting bediening (L of R)","vajalik küljeruum mootori või tali puhul (L või R)","tarvittava tila mootori- tai ketjunostolle (L tai R)","необходимое боковое пространство для электропривода или цепного редуктора (L и R)"]
[null,{"$f":"VLOOKUP(AG8,AG2:AR96,$AE$1+1,FALSE)","v":"HUOMAUTUS:"},{"$nulls":15},{"$f":"VLOOKUP(AG26,AG2:AR96,$AE$1+1,FALSE)","v":"ASIAKKAAN TEHTÄVÄT TYÖT, ELLEI ETUKÄTEEN KIRJALLISESTI MUUTOIN SOVITTU "},{"$nulls":14},{"$f":"VLOOKUP(AH50,AH50:AR142,$AE$1,FALSE)","v":"kiinnityspinta ohjauspaneelia varten ,mitat 250 x 400 mm"},"montážní plocha pro řídící jednotku motoru, rozměr 250 x 400 mm","mounting surface for control panel dimensions 250 x 400 mm","Montagefläche für Antriebsteuerung Mass 250 x 400 mm","powierzchnia montażowa dla jednostki sterującej silnika wymiary 250 x 400 mm","surface de montage pour le Coffret de commande  du moteur (dimensions : L.250 x H.400 mm)","montagevlak t.b.v. schakelkast afmetingen 250 x 400 mm","paigalduspind 250x400 mm kontrollerile","kiinnityspinta ohjauspaneelia varten ,mitat 250 x 400 mm","монтажная поверхность для блока управления 250x400мм"]
[{"$nulls":32},{"$f":"VLOOKUP(AH51,AH51:AR143,$AE$1,FALSE)","v":"keskiviiva ca 1,400 -1,500 mm: n korkeudella lattiasta"},"osa cca 1.400 až 1.500 mm od podlahy","center line ca 1.400 -1.500 mm above floor","Achse ca. 1.400 bis 1.500 mm vom Boden","oś ok. 1.400 do 1.500 mm od podłogi","axe d'env. 1 400 a 1 500 mm a compter ","hartlijn ca. 1.400 - 1.500 boven de vloer","Keskjoon ca 1400-1500 mm põrandast","keskiviiva ca 1,400 -1,500 mm: n korkeudella lattiasta","осевая линия примерно 1.400-1.500 мм над уровнем пола"]
[null,{"$f":"VLOOKUP(AG55,AG2:AR96,$AE$1+1,FALSE)","v":"Ylä ja sivukarmien sekä jousipaketin asennuspinnan pitää olla tasaisia ja samassa linjassa"},{"$nulls":15},{"$f":"VLOOKUP(AG27,AG2:AR96,$AE$1+1,FALSE)","v":"\nRakenteellinen:"},{"$nulls":14},{"$f":"VLOOKUP(AH52,AH52:AR144,$AE$1,FALSE)","v":"Pistorasiasta CEE 16A, 5P, 400V, suojattu 6 A (10 A) katkaisijalla, vikavirtasuoja I = 30 mA."},"zásuvka CEE 16 A, 5P, 400 V, jištěno 6 A (10 A) jističem, proudový chránič I=30 mA","Electric outlet CEE 16 A, 5P, 400 V, protect by 6 A (10 A) circuit breaker, residual current device I=30 mA.","Steckdose CEE 16 A, 5P, 400 V, Sicherung 6 A (10 A) mit Schutzschalter, Stromschutz  I=30 mA.","gniazdo CEE 16 A, 5P, 400 V, ochrona za pomocą bezpiecznika 6A (10A), wyłącznik prądowy l=30 mA","prise CEE 16 A, 5P, 400 V, assuré par un disjoncteur 6 A (10 A),  disjoncteur I=30 mA","Eurostopcontact CEE 16 A, 5P, 400V, afgezekerd met 6A (10A), Overstroombeveiliging I=30mA. ","jõupesa CEE 16A, 5P, 400V koos 6A (10A) kaitsmega. Rikkevookukaitse I=30 mA","Pistorasiasta CEE 16A, 5P, 400V, suojattu 6 A (10 A) katkaisijalla, vikavirtasuoja I = 30 mA.","электрическая розетка CEE 16А, 5P, 400V, защита автоматическим выключателем 6А(10А), устройство защитного отключения (УЗО) I=30mA"]
[null,{"$f":"VLOOKUP(AG56,AG2:AR96,$AE$1+1,FALSE)","v":"Lisäksi oviaukon pitää olla pysty- ja vaakasuora sekä nelikulmainen."},{"$nulls":15},{"$f":"VLOOKUP(AG28,AG2:AR96,$AE$1+1,FALSE)","v":"Toimittaa ja asentaa asennuskehyksen ja asennuspinnat kiskoille ja jousipaketille tapauksessa jossa kevytbetooni tai sandwich-paneeli jne."}]
[null,{"$f":"VLOOKUP(AG57,AG2:AR96,$AE$1+1,FALSE)","v":"Lattian pitää olla tasainen ja vaakasuora."}]
[null,{"$f":"AG113","v":"Moottori- tai ketjukäyttöinen ovi on varustettava kiristyssarjalla 688CR (sulkeutuvalle ovelle) joka soveltu aina oikealle puolelle (riippumatta kummalla puolella on "},{"$nulls":15},{"$f":"VLOOKUP(AG29,AG3:AR96,$AE$1+1,FALSE)","v":"Asennus mahdollisuudet vaakakiskoille enintään 1 metrin korkeudella kiskoista pitää olla mahdollista."},{"$nulls":14},{"$f":"VLOOKUP(AH55,AH55:AR147,$AE$1,FALSE)","v":"Ylä ja sivukarmien sekä jousipaketin asennuspinnan pitää olla tasaisia ja samassa linjassa"},"Stěna nad překladem, stěny vedle otvoru a plochy pro montáž konzol musí být rovné a v jedné rovině.","The rear face of the lintel and the door jambs, as well as the surface for the spring packet must be levelled and in line.","Die hinteren Seiten der Sturze und Pfeiler, sowie die Montagefläche für das Federpaket müssen eben und auf einer Linie liegen.","Ściany tłumaczenia, obok ściany otworu oraz wszystkie obszary i zbiórki musi być kolor.","La surface d'appui pour la pose de la porte sectionnelle doit etre dans le meme plan et verticale.","De achterkanten van de penanten, de latei en de montagevlakken van het verenpakket dienen vlak en in één lijn te liggen.","Kõik paigalduspinnad peavad olema ühes tasapinnas ja loodis","Ylä ja sivukarmien sekä jousipaketin asennuspinnan pitää olla tasaisia ja samassa linjassa","Монтажная поверхность должна быть ровной и распологаться в одной вертикальной плоскости"]
[null,{"$f":"VLOOKUP(AG60,AG2:AR96,$AE$1+1,FALSE)","v":"YKSIKKÖ mm"},{"$nulls":30},{"$f":"VLOOKUP(AH56,AH56:AR148,$AE$1,FALSE)","v":"Lisäksi oviaukon pitää olla pysty- ja vaakasuora sekä nelikulmainen."},"Otvor musí být svislý a obdélníkový.","Furthermore the opening must be plumb and square.","Im übrigen müssen die lichten Masse eben und rechtwinklig sein.","Otwór musi być pionowy i prostokątny.","L'ouverture de la baie doit etre parfaitement de niveau et d'equerre.","Tevens moet de dagmaat vlak en haaks zijn.","Ava peab olema täpne ja nelinurkne","Lisäksi oviaukon pitää olla pysty- ja vaakasuora sekä nelikulmainen.","Проем также должен быть ровным и прямоугольным."]
[null,"W =",{"$f":"VLOOKUP(AG61,AG2:AR96,$AE$1+1,FALSE)","v":"Oviaukon leveys"},{"$nulls":3},{"$f":"VLOOKUP(AG74,AG6:AR99,$AE$1+1,FALSE)","v":"Käsikäyttöinen"},{"$nulls":5},{"$f":"VLOOKUP(AG81,AG6:AR99,$AE$1+1,FALSE)","v":"Tila oviaukon päällä"},{"$nulls":4},{"$f":"VLOOKUP(AG30,AG2:AR96,$AE$1+1,FALSE)","v":"Tarvittava kiinnityspinta ja vapaa tilaa kuvan mukaisesti."},{"$nulls":14},{"$f":"VLOOKUP(AH57,AH57:AR149,$AE$1,FALSE)","v":"Lattian pitää olla tasainen ja vaakasuora."},"Podlaha musí být rovná a vodorovná.","Floor area must be flat and horizontal.","Der Fussboden muss glatt und waagerecht sein.","Podłoga musi być równa i pozioma.","Le sol doit etre parfaitement horizontal et plan.","De afgewerkte vloer dient vlak en waterpas te liggen.","Põrandapind peab olema sile ja horisontaalne","Lattian pitää olla tasainen ja vaakasuora.","Обработанный пол должен быть ровным и без склонов."]
[null,"H =",{"$f":"VLOOKUP(AG62,AG3:AR96,$AE$1+1,FALSE)","v":"Oviaukon korkeus"},{"$nulls":3},"L/R",{"$f":"VLOOKUP(AG75,AG6:AR99,$AE$1+1,FALSE)","v":"\nKaksipuoleinen"},{"$nulls":3},"min. 150","F",null,null,{"$f":"IF(K9=AG122,270,230)","v":230},null,{"$f":"VLOOKUP(AG31,AG2:AR96,$AE$1+1,FALSE)","v":"Sähkönsyöttö tarvittu:"}]
[null,"F = ",{"$f":"VLOOKUP(AG65,AG5:AR98,$AE$1+1,FALSE)","v":"vapaa ylätila"},{"$nulls":3},"D",{"$f":"VLOOKUP(AG78,AG6:AR99,$AE$1+1,FALSE)","v":"tila takana"},null,null,"H + 1250",{"$f":"IF(OR(K3=\"\",K5=\"\",P58=\"\"),\"\",K5+1250)","v":""},{"$nulls":5},{"$f":"VLOOKUP(AG32,AG2:AR96,$AE$1+1,FALSE)","v":"400V / 230V 3 vaihe+neutraali ja maadoitus tarjotuna Euro pistorasiasta."}]
[null,"A=",{"$f":"AG82","v":"Akseli ovipalkkin päällä"},{"$nulls":3},{"$f":"VLOOKUP(AG76,AG6:AR99,$AE$1+1,FALSE)","v":"Sähkö- tai ketjukäytöinen"},{"$nulls":8},{"$f":"IF(OR(K3=\"\",K5=\"\",P58=\"\"),\"\",K5+P58+70)","v":""},null,{"$f":"AG33","v":"Tarjoa sopivan kiinnityspinnan  ohjauspaneelia varten ,mitat 250 x 400 mm"},{"$nulls":14},{"$f":"VLOOKUP(AH60,AH60:AR152,$AE$1,FALSE)","v":"YKSIKKÖ mm"},"Rozměry jsou v mm","UNITS in mm","MASSE in mm","Wymiary podane w mm","MESURES en mm","MATEN in mm","Mõõdud mm","YKSIKKÖ mm","размеры в мм:"]
[null,"L = ",{"$f":"VLOOKUP(AG67,AG7:AR100,$AE$1+1,FALSE)","v":"vapaa tila vasemalla"},{"$nulls":3},"L",{"$f":"AG112","v":"Ei mootoria/ketjua"},{"$nulls":3},"min. 150",{"$f":"VLOOKUP(AG82,AG6:AR99,$AE$1+1,FALSE)","v":"Akseli ovipalkkin päällä"},{"$nulls":4},{"$f":"VLOOKUP(AG85,AG2:AR96,$AE$1+1,FALSE)","v":"\nSuunnitellut:"},null,{"$f":"VLOOKUP(AG86,AG2:AR96,$AE$1+1,FALSE)","v":"Tarkistanut"},null,{"$f":"VLOOKUP(AG87,AG2:AR96,$AE$1+1,FALSE)","v":"\nHyväksytty - päivämäärä:"},null,{"$f":"VLOOKUP(AG88,AG2:AR96,$AE$1+1,FALSE)","v":"\nTiedoston nimi:"},null,{"$f":"VLOOKUP(AG89,AG2:AR96,$AE$1+1,FALSE)","v":"Päivämäärä:"},{"$f":"VLOOKUP(AG90,AG2:AR96,$AE$1+1,FALSE)","v":"Mittakaava:"},{"$f":"VLOOKUP(AG91,AG2:AR96,$AE$1+1,FALSE)","v":"Lista:"},{"$nulls":4},"Oviaukon leveys","Šířka otvoru","Opening width","Lichte Breite","Szerokość otworu","LARGEUR DE BAIE","Dagmaat breedte","Ava laius","Oviaukon leveys","ширина проема"]
[null,"R = ",{"$f":"VLOOKUP(AG68,AG8:AR101,$AE$1+1,FALSE)","v":"vapaa tila oikealla"},{"$nulls":3},"R",{"$f":"AG112","v":"Ei mootoria/ketjua"},{"$nulls":3},"min. 180","A",null,null,110,null,"K.Luňák",null,"R. Kříž",null,"2020-11-12",null,"STP",null,"2020-11-12","-","A3",{"$nulls":4},"Oviaukon korkeus","Výška otvoru","Opening height","Lichte Höhe","Wysokość otworu","HAUTEUR DE BAIE","Dagmaat hoogte","Ava kõrgus","Oviaukon korkeus","высота проема"]
[null,"D = ",{"$f":"VLOOKUP(AG69,AG10:AR102,$AE$1+1,FALSE)","v":"tila takana"},{"$nulls":3},"L/R",{"$f":"VLOOKUP(AG77,AG6:AR99,$AE$1+1,FALSE)","v":"Mootorin tai ketjun puolinen"},{"$nulls":3},"min. 400",{"$f":"AG116","v":"riiputuspiste holkille"},{"$nulls":4},"http://door-documents.com/en/indy-installation-drawing-ll-ce",{"$nulls":3},{"$f":"VLOOKUP(AG92,AG2:AR96,$AE$1+1,FALSE)","v":"ASENNUSPIIRUSTUS "},{"$nulls":10},"korkeanosto","High lift","High lift","Höhe der Führung","Wyciąg wysoki","LEEVE HAUTE","High lift","Kõrge tõste","korkeanosto","Высокий подъем"]
[null,"x =",{"$f":"VLOOKUP(AG70,AG14:AR104,$AE$1+1,FALSE)","v":"1. ripustuspiste"},{"$nulls":3},"D",{"$f":"VLOOKUP(AG78,AG6:AR99,$AE$1+1,FALSE)","v":"tila takana"},null,null,"H + 1250",{"$f":"IF(OR(K3=\"\",K5=\"\",P58=\"\"),\"\",K5+1250)","v":""},"S",null,"H + 1020",{"$f":"IF(OR(K3=\"\",K5=\"\",P58=\"\"),\"\",K5+1020)","v":""},{"$nulls":16},"sisäkorkeus","Výška stropu","Interior height","Höhe Innenraum","Wysokość stropu","HAUTEUR SOUS PLAFOND","Hoogte binnenruimte","Sisemine kõrgus","sisäkorkeus","высота внутри помещения до перекрытий"]
[null,"Y = ",{"$f":"VLOOKUP(AG71,AG15:AR105,$AE$1+1,FALSE)","v":"2. ripustuspiste"},{"$nulls":3},{"$f":"IF(AND(J68>=3000),\"\",VLOOKUP(AG79,AG6:AR99,$AE$1+1,FALSE))","v":""},null,{"$f":"IF(J68>=3000,\"\",\"D<=3000\")","v":""},{"$nulls":3},{"$f":"IF(J68>=4500,VLOOKUP(AG79,AG6:AR99,$AE$1+1,FALSE),\"\")","v":"Ripustuspiste jos"},null,{"$f":"IF(J68>=4500,\"D>=4500\",\"\")","v":"D>=4500"},{"$nulls":6},{"$f":"AG13","v":"MATALANOSTO (LL-CE)"},{"$nulls":10},"vapaa ylätila","Volný prostor nad překladem","Free room above lintel","Freiraum über Sturz","Wolna przestrzeń nad nadprożem","RETOMBEE DE LINTEAU DISPONIBLE","Vrije ruimte boven latei","Vaba ruum laeni","vapaa ylätila","свободное пространство над проемом"]
[null,"S=",{"$f":"AG116","v":"riiputuspiste holkille"},{"$nulls":3},{"$f":"IF(J68>=3000,\"\",\"X\")","v":""},{"$f":"IF(J68>=3000,\"\",VLOOKUP(AG80,AG6:AR99,$AE$1+1,FALSE))","v":""},null,null,{"$f":"IF(J68>=3000,\"\",\"H\")","v":""},{"$f":"IF(J68>=3000,\"\",IF(OR(K3=\"\",K5=\"\",P58=\"\"),\"\",K5))","v":""},{"$f":"IF(J68>=4500,\"X\",\"\")","v":"X"},{"$f":"IF(J68>=4500,AG70,\"\")","v":"1. ripustuspiste"},{"$f":"IF(J68>=4500,\"H\",\"\")","v":"H"},{"$f":"IF(J68>=4500,K5,\"\")","v":0},{"$nulls":16},"Rungon korkeus oviaukon yläpuolella.","Výška montážní plochy nad otvorem","Height of frame above opening","Höhe über Montagefläche Loch","Wysokość powyżej otworu montażowego powierzchni","HAUTEUR AU-DESSUS DU TROU DE SURFACE DE MONTAGE","Hoogte frame boven latei","Raami kõrgus ava kohal","Rungon korkeus oviaukon yläpuolella.","высота конструкции ворот над проемом"]
[{"$nulls":6},{"$f":"IF(AND(J68>=3000,J68<4500),VLOOKUP(AG79,AG6:AR99,$AE$1+1,FALSE),\"\")","v":""},null,{"$f":"IF(AND(J68>=3000,J68<4500),\"3000=<D<4500\",\"\")","v":""},{"$nulls":3},{"$f":"IF(J68>=4500,\"Y\",\"\")","v":"Y"},{"$f":"IF(J68>=4500,AG71,\"\")","v":"2. ripustuspiste"},{"$f":"IF(J68>=4500,\"(X/3)*2\",\"\")","v":"(X/3)*2"},{"$f":"IF(J68>=4500,(P66/3)*2,\"\")","v":0},{"$nulls":16},"vapaa tila vasemalla","Volný prostor vlevo","Free side room left","Freiraum LINKS","Wolna przestrzeń W LEWO","ECOINCON GAUCHE","Vrije zijruimte links","Vaba küljeruum vasakul","vapaa tila vasemalla","свободное боковое пространство СЛЕВА"]
[{"$nulls":6},{"$f":"IF(AND(J68>=3000,J68<4500),\"X\",\"\")","v":""},{"$f":"IF(AND(J68>=3000,J68<4500),(VLOOKUP(AG70,AG6:AR99,$AE$1+1,FALSE)),\"\")","v":""},null,{"$f":"IF($K$7=$AG$102,$L$59,$L$64)","v":""},{"$f":"IF(AND(J68>=3000,J68<4500),\"H\",\"\")","v":""},{"$f":"IF(AND(J68>=3000,J68<4500),IF(OR(K3=\"\",K5=\"\",P58=\"\"),\"\",K5),\"\")","v":""},{"$f":"IF(J68>=4500,\"Y2\",\"\")","v":"Y2"},{"$f":"IF(J68>=4500,AG72,\"\")","v":"3. ripustuspiste"},{"$f":"IF(J68>=4500, \"X/3\",\"\")","v":"X/3"},{"$f":"IF(J68>=4500,P66/3,\"\")","v":0},{"$nulls":5},{"$f":"AG13","v":"MATALANOSTO (LL-CE)"},{"$nulls":3},{"$f":"VLOOKUP(AG95,AG2:AR96,$AE$1+1,FALSE)","v":"Koodi:"},{"$f":"VLOOKUP(AG96,AG2:AR96,$AE$1+1,FALSE)","v":"Versio:"},{"$nulls":5},"vapaa tila oikealla","Volný prostor vravo","Free side room right","Freiraum RECHTS","Wolna przestrzeń W PRAWO","ECOINCON DROITE","Vrije zijruimte rechts","Vaba küljeruum paremal","vapaa tila oikealla","свободное боковое пространство СПРАВА"]
[{"$nulls":6},{"$f":"IF(AND(J68>=3000,J68<4500),\"Y\",\"\")","v":""},{"$f":"IF(AND(J68>=3000,J68<4500),(VLOOKUP(AG71,AG6:AR99,$AE$1+1,FALSE)),\"\")","v":""},null,null,{"$f":"IF(AND(J68>=3000,J68<4500),\"1/2 X\",\"\")","v":""},{"$f":"IF(AND(J68>=3000,J68<4500),(IF(OR(K3=\"\",K5=\"\",P58=\"\"),\"\",L68/2)),\"\")","v":""},{"$nulls":13},"050-5",2046,{"$nulls":5},"tila takana","Hloubka vedení","Back room","Einbautiefe","Głębokość prowadzenia poziomego","REFOULEMENT HORS-TOUT","Inbouwdiepte","Sügavus","tila takana","монтажная глубина"]
[{"$nulls":32},"1. ripustuspiste","Kotvící bod č. 1","1 st hanging point","1. Aufhängepunkt","Punkt mocowania nr 1","POINT D'ANCRAGE 1 SUSPENTE","1e ophangpunt","1.kinnituskoht","1. ripustuspiste","1 точка крепления горизонтальных направляющих"]
[{"$nulls":32},"2. ripustuspiste","Kotvící bod č. 2","2 nd hanging point","2. Aufhängepunkt","Punkt mocowania nr 2","POINT D'ANCRAGE 2 SUSPENTE","2e ophangpunt","2.kinnituskoht","2. ripustuspiste","2 точка крепления горизонтальных направляющих"]
[{"$nulls":32},"3. ripustuspiste","Kotvící bod č. 3","3 rd hanging point","3. Aufhängepunkt","Punkt mocowania nr 3","POINT D'ANCRAGE 3 SUSPENTE","3e ophangpunt","3. kinnituskohta","3. ripustuspiste","3 точка крепления горизонтальных направляющих"]
[{"$nulls":32},{"$f":"VLOOKUP(AH73,AH73:AR164,$AE$1,FALSE)","v":"Vapaa tila asennuspisten kohdalla"},"Volný prostor nad překladem","Free room above mounting surface","Freiplatz auf der Mountageplatz","Wolny przestrzeń nad nadproźem","Espace au-dessus de la surface de montage","Ruimte boven montagevlak","Vaba ruum ülalpool paigalduspinda","Vapaa tila asennuspisten kohdalla","технологический зазор"]
[{"$nulls":32},{"$f":"VLOOKUP(AH74,AH74:AR165,$AE$1,FALSE)","v":"Käsikäyttöinen"},"Ruční ovládání","Manually operated","Handbedienung","Sterowanie ręczne","PORTE MANUELLE","Handbediend","Käsitsi avatav","Käsikäyttöinen","ручное управление"]
[{"$nulls":32},"\nKaksipuoleinen","Obě strany","Both sided","Beide Seiten","Obie strony","LES 2 COTES","Beide zijden","Mõlemal pool","\nKaksipuoleinen","обе стороны"]
[{"$nulls":32},"Sähkö- tai ketjukäytöinen","Ovládání elektricky nebo řetězovým převodem","Electrical or hauling chain operated","Elektrisch- oder Haspelkettenbedient","Sterowanie elektr. lub za pom. przekł. łańc.","PORTE MOTORISEE OU AVEC TREUIL A CHAINE","Elektrisch- of handketting bediend","Elektriliselt või taliga avatav","Sähkö- tai ketjukäytöinen","электрическое управление или с помощью цепи"]
[{"$nulls":32},"Mootorin tai ketjun puolinen","Motor nebo řetěz. př.","Motor or chain side","Motor-oder Kettenseite","Silnik lub przekł. łańc.","ECOINCON LIBRE A COTE DE MOTEUR","Motor- of kettingzijde","Mootori või tali pool","Mootorin tai ketjun puolinen","сторона цепи или мотора"]
[{"$nulls":32},"Tila takana","Hloubka vedení","Back room","Einbautiefe","Głębokość prowadzenia","REFOULEMENT HORS-TOUT","Inbouwdiepte","Sügavus","Tila takana","монтажная глубина"]
[{"$nulls":32},"Ripustuspiste jos","Kotvící bod, když je","Hanging point if","Aufhängepunkte, wenn","Punkty mocowania, jeżeli","POINT D'ANCRAGE DES SUSPENTES, SI","Ophangpunt, als","Kinnituskoht, kui ","Ripustuspiste jos","точки крепления горизонтальных направляющих, если"]
[{"$nulls":32},"Ripustuspiste","Kotvící bod","Hanging point","Aufhängepunkte","Punkty mocowania","POINT D'ANCRAGE DES SUSPENTES","Ophangpunt","Kinntuskoht","Ripustuspiste","точка крепления"]
[{"$nulls":32},"Tila oviaukon päällä","Volný prostor nad překladem","Free room above lintel","Freiraum über Sturz","Wolna przestrzeń nad nadprożem (min.)","RETOMBEE DE LINTEAU DISPONIBLE","Vrije ruimte boven latei","Vaba ruum sillusest  laeni","Tila oviaukon päällä","свободное пространство над проемом"]
[{"$nulls":32},"Akseli ovipalkkin päällä","Osa hřídele nad překladem","Height of shaft above lintel","Mitte Achse zum Sturz","Oś wału nad nadprożem","POSITIONNEMENT AXE DE l'ARBRE DE LINTEAU","Center as boven latei","Kesktelg","Akseli ovipalkkin päällä","центральная ось вала"]
[]
[]
[{"$nulls":32},"\nSuunnitellut:","Sestavil:","Designed by:","Aufgestellt:","Wykonał:","DESSINE PAR:","Getekend door:","Joonestatud:","\nSuunnitellut:","спроектировано:"]
[{"$nulls":32},"Tarkistanut","Upravil:","Checked by","Bereinigt:","Skorygował:","MODIFIE PAR:","Gecontroleerd door:","Kontrollitud:","Tarkistanut","проверил:"]
[{"$nulls":32},"\nHyväksytty - päivämäärä:","Schváleno - datum:","Approved by - date:","Bereinigt am:","Skorygowano dnia:","MODIFIE LE (DATE):","Goedgekeurd datum:","Kinnitatud:","\nHyväksytty - päivämäärä:","одобрил-дата:"]
[{"$nulls":32},"\nTiedoston nimi:","Název souboru:","File name:","Dateiname:","Nazwa pliku:","TITRE:","Bestandsnaam","Faili nimi:","\nTiedoston nimi:","навание файла:"]
[{"$nulls":32},"Päivämäärä:","Datum:","Date:","Datum:","Data:","DATE:","Datum:","Kuupäev:","Päivämäärä:","дата:"]
[{"$nulls":32},"Mittakaava:","Měřítko","Scale:","Massst.:","Podział.:","ECHELLE:","Schaal:","Mõõtkava:","Mittakaava:","шкала:"]
[{"$nulls":32},"Lista:","Formát: ","Sheet:","Format:","Format:","FORMAT:","Sheet:","Formaat:","Lista:","лист:"]
[{"$nulls":32},"ASENNUSPIIRUSTUS ","STAVEBNÍ PŘIPRAVENOST   ","INSTALLATION DRAWING ","BAUBEREITSCHAFT                           NIEDRIGSTURZ BESCHLAG (LL-CE)","PRZYGOTOWANIE KONSTRUKCYJNE                           PROWADZENIE DLA NIESKIEGO NADPROŻA (LL-CE)","PLAN DE RESERVATIONS & ENCOMBREMENTS                                      LEVEE REDUITE (LL-CE)","LAAG PLAFONDSYSTEEM KABELS BINNENDOOR (LL-CE)","Paigaldusjoonis","ASENNUSPIIRUSTUS ","монтажный чертеж"]
[{"$nulls":32},"jouset ovipalkkin päällä","pružiny nad překladem ","springs above lintel "," Federn oberhalb des Sturzes ","sprężyny nad nadprożem ","RESSORTS AVANTS DEPORTES DU LINTEAU","verenpakket boven latei","vedrud ava kohal","jouset ovipalkkin päällä","нижнее расположение вала"]
[{"$nulls":32},0,"VERTIKÁLNÍ SYSTÉM","VERTICAL LIFT SYSTEM","VERTIKALER BESCHLAG (VL-T)","PROWADZENIE PIONOWE (VL-T)","LEVEE VERTICALE (VL)","VERTICAAL PLAFONDSYSTEEM"]
[{"$nulls":32},"Koodi:","Kód:","Code:","Kode:","Kod:","CODE:","Nr.:","Kood:","Koodi:","код:"]
[{"$nulls":32},"Versio:","Verze:","Version:","Version:","Wersja:","VERSION:","Versie:","Versioon:","Versio:","версия:"]
[{"$nulls":32},"EI VAADITTU","NENÍ POŽADOVÁNO","NOT REQUIRED","NICHT ERFORDELICH","Nie jest wymagane","Pas nécessaire","NIET BENODIGD","Mitte vajalik","EI VAADITTU","НЕ ТРЕБУЕТСЯ"]
[]
[{"$nulls":32},"\nTäytä kentät, jotka on merkitty värillä!","Prosím, vyplňte pole, která jsou označena barevně!","Please, fill in the fields that are marked in color!","Fülen Sie bitte markierte Felder!","Prosimy o wypełnienie pól oznaczonych kolorem!","S'il vous plaît remplissez les champs qui sont marqués en couleur!","Vul a.u.b. de gemarkeerde velden in!","Palun täida värvilised väljad!","\nTäytä kentät, jotka on merkitty värillä!","пожалуйста, заполните поля обозначенные цветом!"]
[]
[{"$nulls":32},"Ohjattu","Ovládání","Operated","Bedienung","Sterowanie","PORTE","Bediening","Avamine","Ohjattu","Тип управления"]
[{"$nulls":32},"manuaalisesti","ručně","manually","hand","ręcznie wykonany","MANUELLE","hand","käsitsi","manuaalisesti","вручную"]
[{"$nulls":32},"sähköisesti","elektricky","electrical ","elektrisch","elektrycznie","MOTORISEE","elektrisch","elektriliselt","sähköisesti","электрическое управление или с помощью цепи"]
[{"$nulls":32},"ketjukäyttöinen","řetězovým převodem","hauling chain operated","haspeklette","Łańcuch napędu","TREUIL A CHAINE","handketting","taliga","ketjukäyttöinen","\nцепной привод\nцепной привод"]
[]
[{"$nulls":32},"Mootorin asema","Umístění motoru","Possition of motor","Antriebesposition","Pozycja sylnika","LA POSITION MOTEUR","Positie van de motor","mootori asukohta","Mootorin asema","расположение мотора"]
[{"$nulls":32},"Vasemallla","Na levé straně","On the left side","Auf der linken Seiten","Po lewej stronie","SUR LE COTE GAUCHE","Aan de linkerzijde","vasakul küljel","Vasemallla","с левой стороны"]
[{"$nulls":32},"Oikealla","Na pravé straně","On the right side","Auf der rechten Seiten","Po prawej strony","SUR LE COTE DROIT","Aan de rechterzijde","paremal küljel","Oikealla","с правой стороны"]
[]
[{"$nulls":32},"tarvittava sivutila","nezbytný boční prostor","necessary side room ","Benötigter Freiraum ","niezbędna przestrzeń boczna ","écoinçon minimum requis ",null,"Vajalik küljeruum","tarvittava sivutila","необходимое боковое пространство"]
[]
[{"$nulls":32},"Ei mootoria/ketjua","Strana bez motoru","No motor/chain","Seine ohne Antrieb","Strona bez silnika","Cote oppose au treuil a chaine",null,"ilma mootorita/talita","Ei mootoria/ketjua","сторона без мотора/цепи"]
[{"$nulls":32},"Moottori- tai ketjukäyttöinen ovi on varustettava kiristyssarjalla 688CR (sulkeutuvalle ovelle) joka soveltu aina oikealle puolelle (riippumatta kummalla puolella on ","Vrata s motorem nebo řetězovým převodem musí obsahovat napínací set 688CR (pro zpětné stahování vrat), který se montuje vždy na pravo (nezáleží na umístění motoru)","Motor- or hauling chain operated door must be equipped with tension set  688CR (for closing door), which is fitted always on right side (depends not where is motor/hauling chain)","Tore mit Antrieb oder Hanspelkettenantrieb müssen Seilspannvorrichtung (für Zurückziehung) der ist immer rechts montiert (es ist nicht wichtig wo Antrieb montiert ist) enthalten.","Brama z silnikiem lub z przekładnią łańcuchową musi zawierać zestaw naprężający 688CR (do zamykania bramy), który montowany jest zawsze po prawej stronie (niezależnie od umieszczenia silnika)."," La porte motorisée avec transmission par chaîne doit contenir un set de tension  688CR (pour faciliter la manoeuvre de la porte), qui doit toujours etre  monté a droite (cela ne dépend pas de l'emplacement du moteur).",null,"Mootoriga või taliga avatav uks peab olema varustatud trossipingutuskomplektiga 688CR, mis paigaldatakse alati paremale poole ","Moottori- tai ketjukäyttöinen ovi on varustettava kiristyssarjalla 688CR (sulkeutuvalle ovelle) joka soveltu aina oikealle puolelle (riippumatta kummalla puolella on ","Система обратной тяги всегда располагается с правой стороны, вне зависимости от места нахождения электропривода/цепного редуктора. При ручном управлении не применяется."]
[]
[{"$nulls":32},"Katon kaltevuus","Úhel sklonu střechy","Gradient of the roof","Deckenwinkel","Głębokość prowadzenia poziomego","PENTE DU TOIT",null,"Katusekalle","Katon kaltevuus","Оцинкованный профиль 80х40х2 мм (в комплекте) должен быть закреплен на потолке минимум в трех точках (2 точки для ворот менее 10м²)"]
[{"$nulls":32},"riiputuspiste holkille","Kotvící body pro jekl","Hanging point for sleeves","Aufhängepunkt für Vierkantrohr","Punkt mocowania dla profilu zamkn","POINT D'ANCRAG POUR FIXATION DU TUBE ",null,"Nelikanttoru kinnituskoht","riiputuspiste holkille","ТРОСЫ ВНУТРИ"]
[]
[{"$nulls":32},"Galvanoitu holkki 80x40x2 sisältyy. Holkki on kiinnitetty kattoon vähintään 3sta pistestä (2 pistettä ovella alle 10 m2).","Jekl 80x40x2 (pozink) je součástí dodávky. Musí se pevně přikotvit ke stropu minimálně na 3 místech (u vrat do 10m2 stačí na 2 místech)","Galvanized sleeve 80x40x2 is included. Sleeve must be attached to ceiling at minimum 3 points (2 points for door under 10 m2).","Rechteckigerohre 80x40x2 (verzinkt) ist ein Lieferungsbestandteil. Er muss fest an die Decke in drei Punkten befestigt werden, (beim Torblatt bis 10 m2 reichen 2 Punkte).","Profil zamknięty 80x40x2 (ocynkowany) stanowi część składową dostawy. Musi zostać mocno zamocowany do stropu. Minimalnie w trzech miejscach, (w wypadku bramy do 10 m2 wystarczy w dwóch miejscach)","Le tube de 80x40x2 en acier galvanisé est compris dans la livraison. II doi bien entre fixé au plafond par au minimum 3 points de fixation (pour les portes jusqu a d 10 m2, 2 point the fixation suffisent). ",null,"80x40x2 galvaniseeritud toru sisaldub tarnes. Toru kinnitatakse lakke minimaalselt kolmes kohas (2 kinnituskoha ustel alla 10m2)","Galvanoitu holkki 80x40x2 sisältyy. Holkki on kiinnitetty kattoon vähintään 3sta pistestä (2 pistettä ovella alle 10 m2).","Оцинкованный профиль 80х40х2 мм (в комплекте) должен быть закреплен на потолке минимум в трех точках (2 точки для ворот менее 10м²)"]
[{"$nulls":32},"lamellin tyypi","Typ panelu","Type of panel","Paneel-Typ","Rodzaj panelu","Type de panneau","Panel type","Paneelitüüp","lamellin tyypi","Тип панели"]
[]
[{"$nulls":32},"40mm","40mm","40mm","40mm","40mm","40mm","40mm","40 mm","40mm","40мм"]
[{"$nulls":32},"80mm","80mm","80mm","80mm","80mm","80mm","80mm","80 mm","80mm","80мм"]

{"sheet":"SW-R","index":1,"n_rows":48,"n_cols":6,"rows_kept":48,"merged":[[5,1,7,1],[14,1,17,1],[39,2,40,8],[41,2,42,3],[41,4,42,6],[41,7,48,8],[43,2,44,3],[43,4,44,6],[45,2,46,3],[45,4,46,6],[47,2,48,3],[47,4,48,6]]}
[]
[]
[]
[]
[]
["",{"$f":"\"F=\"&general!P58","v":"F=230"}]
{"$rows_empty":8}
[null,{"$f":"\"H=\"&general!K5","v":"H="}]
{"$rows_empty":11}
[{"$nulls":5},{"$f":"general!K3","v":0}]
{"$rows_empty":12}
[null,null,{"$f":"general!Q2","v":"MATALANOSTO (LL-CE)"}]
[]
[null,null,{"$f":"general!$AG$106","v":"Mootorin asema"},null,{"$f":"general!$AG$108","v":"Oikealla"}]
[]
[null,null,{"$f":"general!$R$61","v":"\nSuunnitellut:"}]
[]
[null,null,{"$f":"general!$T$61","v":"Tarkistanut"}]
[]
[null,null,{"$f":"general!$Z$61","v":"Päivämäärä:"}]

{"sheet":"SW-L","index":2,"n_rows":48,"n_cols":6,"rows_kept":48,"merged":[[5,1,7,1],[14,1,17,1],[39,2,40,8],[41,2,42,3],[41,4,42,6],[41,7,48,8],[43,2,44,3],[43,4,44,6],[45,2,46,3],[45,4,46,6],[47,2,48,3],[47,4,48,6]]}
[]
[]
[]
[]
[]
["",{"$f":"\"F=\"&general!P58","v":"F=230"}]
{"$rows_empty":8}
[null,{"$f":"\"H=\"&general!K5","v":"H="}]
{"$rows_empty":11}
[{"$nulls":5},{"$f":"general!K3","v":0}]
{"$rows_empty":12}
[null,null,{"$f":"general!Q2","v":"MATALANOSTO (LL-CE)"}]
[]
[null,null,{"$f":"general!$AG$106","v":"Mootorin asema"},null,{"$f":"general!$AG$107","v":"Vasemallla"}]
[]
[null,null,{"$f":"general!$R$61","v":"\nSuunnitellut:"}]
[]
[null,null,{"$f":"general!$T$61","v":"Tarkistanut"}]
[]
[null,null,{"$f":"general!$Z$61","v":"Päivämäärä:"}]